fUSD/lending_fUSD_20240407
["ID","MTS","AMOUNT","RATE_DAILY","PERIOD"]
[321759252,1712497853876,-500.0,0.00024931,2]
[321759253,1712497853885,-500.0,0.00024931,2]
[321759254,1712497853895,-500.0,0.00024931,2]
[321759255,1712497853906,-501.60115702,0.00024931,2]
[321759256,1712497853915,-431.94,0.00024931,2]
[321759257,1712497853924,-500.0,0.00024931,2]
[321759258,1712497853933,-500.0,0.00024931,2]
[321759259,1712497853946,-557.35,0.00024931,2]
[321759260,1712497853956,-500.0,0.00024931,2]
[321759261,1712497853966,-500.0,0.00024931,2]
[321759262,1712497853977,-500.0,0.00024931,2]
[321759263,1712497853988,-500.0,0.00024931,2]
[321759264,1712497853997,-500.0,0.00024931,2]
[321759265,1712497854006,-500.0,0.00024931,2]
[321759266,1712497854014,-500.0,0.00024931,2]
[321759267,1712497854024,-500.0,0.00024931,2]
[321759268,1712497854032,-500.0,0.00024931,2]
[321759269,1712497854042,-355.45260584,0.00024931,2]
[321759270,1712497854051,-518.37924191,0.00024931,2]
[321759271,1712497854060,-500.0,0.00024931,2]
[321759272,1712497854069,-635.56,0.00024931,2]
[321759273,1712497854079,-500.0,0.00024931,2]
[321759274,1712497854088,-500.0,0.00024931,2]
[321759275,1712497854097,-500.0,0.00024931,2]
[321759276,1712497854106,-500.0,0.00024931,2]
[321759277,1712497854116,-500.0,0.00024931,2]
[321759278,1712497854125,-177.44,0.00024931,2]
[321759279,1712497854133,-500.0,0.00024931,2]
[321759280,1712497854143,-158.69522688,0.00024931,2]
[321759281,1712497854152,-500.0,0.00024931,2]
[321759282,1712497854161,-383.61,0.00024931,2]
[321759283,1712497854170,-531.44,0.00024931,2]
[321759284,1712497854179,-531.44,0.00024931,2]
[321759285,1712497854190,-531.44,0.00024931,2]
[321759286,1712497854199,-500.0,0.00024931,2]
[321759287,1712497854208,-531.44,0.00024931,2]
[321759288,1712497854217,-500.0,0.00024931,2]
[321759289,1712497854227,-531.44,0.00024931,2]
[321759290,1712497854237,-531.44,0.00024931,2]
[321759291,1712497854246,-531.44,0.00024931,2]
[321759292,1712497854255,-531.44,0.00024931,2]
[321759293,1712497854264,-531.44,0.00024931,2]
[321759294,1712497854273,-531.44,0.00024931,2]
[321759295,1712497854282,-531.44,0.00024931,2]
[321759296,1712497854291,-618.18,0.00024931,2]
[321759297,1712497854301,-500.0,0.00024931,2]
[321759298,1712497854310,-531.44,0.00024931,2]
[321759299,1712497854320,-500.0,0.00024931,2]
[321759300,1712497854329,-500.0,0.00024931,2]
[321759301,1712497854338,-500.0,0.00024931,2]
[321759302,1712497854348,-598.3195975,0.00024931,2]
[321759303,1712497854357,-500.0,0.00024931,2]
[321759304,1712497854367,-500.0,0.00024931,2]
[321759305,1712497854376,-500.0,0.00024931,2]
[321759306,1712497854385,-500.0,0.00024931,2]
[321759307,1712497854394,-500.0,0.00024931,2]
[321759308,1712497854409,-500.0,0.00024931,2]
[321759309,1712497854418,-189.2,0.00024931,2]
[321759310,1712497854428,-500.0,0.00024931,2]
[321759311,1712497854439,-500.0,0.00024931,2]
[321759312,1712497854449,-190.55,0.00024931,2]
[321759313,1712497854458,-500.0,0.00024931,2]
[321759314,1712497854467,-500.0,0.00024931,2]
[321759315,1712497854477,-421.71309481,0.00024931,2]
[321759316,1712497854487,-500.0,0.00024931,2]
[321759317,1712497854496,-518.13979023,0.00024931,2]
[321759318,1712497854506,-316.17,0.00024931,2]
[321759319,1712497854515,-500.0,0.00024931,2]
[321759320,1712497854524,-500.0,0.00024931,2]
[321759321,1712497854533,-500.0,0.00024931,2]
[321759322,1712497854542,-598.55,0.00024931,2]
[321759323,1712497854552,-500.0,0.00024931,2]
[321759324,1712497854561,-500.0,0.00024931,2]
[321759325,1712497854571,-500.0,0.00024931,2]
[321759326,1712497854580,-500.0,0.00024931,2]
[321759327,1712497854590,-500.0,0.00024931,2]
[321759328,1712497854599,-500.0,0.00024931,2]
[321759329,1712497854609,-512.34638291,0.00024931,2]
[321759330,1712497854618,-458.86,0.00024931,2]
[321759331,1712497854627,-500.0,0.00024931,2]
[321759332,1712497854636,-500.0,0.00024931,2]
[321759333,1712497854646,-500.0,0.00024931,2]
[321759334,1712497854655,-500.0,0.00024931,2]
[321759335,1712497854665,-500.0,0.00024931,2]
[321759336,1712497854674,-500.0,0.00024931,2]
[321759337,1712497854683,-500.0,0.00024931,2]
[321759338,1712497854693,-500.0,0.00024931,2]
[321759339,1712497854703,-500.0,0.00024931,2]
[321759340,1712497854712,-500.0,0.00024931,2]
[321759341,1712497854721,-500.0,0.00024931,2]
[321759342,1712497854730,-500.0,0.00024931,2]
[321759343,1712497854739,-500.0,0.00024931,2]
[321759344,1712497854749,-500.0,0.00024931,2]
[321759345,1712497854759,-500.0,0.00024931,2]
[321759346,1712497854768,-500.0,0.00024931,2]
[321759347,1712497854777,-500.0,0.00024931,2]
[321759348,1712497854786,-500.0,0.00024931,2]
[321759349,1712497854796,-500.0,0.00024931,2]
[321759350,1712497854805,-500.0,0.00024931,2]
[321759351,1712497854814,-502.0833219,0.00024931,2]
[321759352,1712497854823,-500.0,0.00024931,2]
[321759353,1712497854833,-500.0,0.00024931,2]
[321759354,1712497854842,-500.0,0.00024931,2]
[321759355,1712497854851,-500.0,0.00024931,2]
[321759356,1712497854861,-500.0,0.00024931,2]
[321759357,1712497854870,-500.0,0.00024931,2]
[321759358,1712497854879,-500.0,0.00024931,2]
[321759359,1712497854889,-500.0,0.00024931,2]
[321759360,1712497854902,-500.0,0.00024931,2]
[321759361,1712497854911,-500.0,0.00024931,2]
[321759362,1712497854920,-448.44006579,0.00024931,2]
[321759363,1712497854930,-500.0,0.00024931,2]
[321759364,1712497854939,-500.0,0.00024931,2]
[321759365,1712497854948,-163.91,0.00024931,2]
[321759366,1712497854957,-500.0,0.00024931,2]
[321759367,1712497854967,-464.46,0.00024931,2]
[321759368,1712497854979,-500.0,0.00024931,2]
[321759369,1712497854989,-500.0,0.00024931,2]
[321759370,1712497854998,-395.58,0.00024931,2]
[321759371,1712497855008,-506.04945421,0.00024931,2]
[321759372,1712497855017,-500.0,0.00024931,2]
[321759373,1712497855026,-500.0,0.00024931,2]
[321759374,1712497855035,-500.0,0.00024931,2]
[321759375,1712497855045,-500.0,0.00024931,2]
[321759376,1712497855054,-500.0,0.00024931,2]
[321759377,1712497855062,-500.0,0.00024931,2]
[321759378,1712497855073,-152.21975544,0.0002496,2]
[321759379,1712497855082,-167.37601789,0.00024978,2]
[321759380,1712497855090,-155.519,0.00024979,2]
[321759381,1712497855100,-500.0,0.00024992,2]
[321759382,1712497855109,-1410.52,0.00024992,2]
[321759383,1712497855118,-709.87,0.00024992,2]
[321759384,1712497855128,-500.0,0.00024992,2]
[321759385,1712497855138,-500.0,0.00024992,2]
[321759386,1712497855148,-285.59808848,0.00024992,2]
[321759387,1712497855158,-1062.89,0.00024992,2]
[321759388,1712497855167,-500.0,0.00024992,2]
[321759389,1712497855177,-22089.5552906,0.00024993,2]
[321759390,1712497855187,-91386.5539912,0.00024993,2]
[321759391,1712497855197,-8014.0081298,0.00024993,2]
[321759392,1712497855207,-500.0,0.00024998,2]
[321759393,1712497855217,-500.0,0.00024998,2]
[321759394,1712497855227,-500.0,0.00024998,2]
[321759395,1712497855237,-617.94710324,0.00024998,2]
[321759396,1712497855247,-500.0,0.00024998,2]
[321759397,1712497855258,-500.0,0.00024998,2]
[321759398,1712497855268,-500.0,0.00024998,2]
[321759399,1712497855281,-188.81605259,0.00024998,2]
[321759400,1712497855290,-500.0,0.00024998,2]
[321759401,1712497855301,-640.9,0.00024998,2]
[321759402,1712497855310,-702.53,0.00024998,2]
[321759403,1712497855320,-500.0,0.00024998,2]
[321759404,1712497855330,-500.0,0.00024998,2]
[321759405,1712497855341,-991.54,0.00024998,2]
[321759406,1712497855351,-881.03,0.00024998,2]
[321759407,1712497855363,-1112.67,0.00024998,2]
[321759408,1712497855372,-500.0,0.00024998,2]
[321759409,1712497855382,-653.64,0.00024998,2]
[321759410,1712497855393,-500.0,0.00024998,2]
[321759411,1712497855404,-531.44,0.00024998,2]
[321759412,1712497855414,-500.0,0.00024998,2]
[321759413,1712497855424,-12100.56785583,0.00024999,2]
[321759414,1712497855433,-4568.39026316,0.00024999,2]
[321759415,1712497855443,-1005.42069864,0.00024999,2]
[321759416,1712497855453,-38242.17669179,0.00024999,2]
[321759417,1712497855463,-7516.26368474,0.00024999,2]
[321759418,1712497855473,-5702.3846837,0.00024999,2]
[321759419,1712497855483,-150.01,0.00024999,2]
[321759420,1712497855494,-762.86726516,0.00024999,2]
[321759421,1712497855505,-500.0,0.00024999,2]
[321759422,1712497855516,-500.0,0.00024999,2]
[321759423,1712497855526,-405.80526139,0.00024999,2]
[321759424,1712497855535,-500.0,0.00024999,2]
[321759425,1712497855545,-261.84,0.00024999,2]
[321759426,1712497855555,-1410.52,0.00024999,2]
[321759427,1712497855565,-1410.52,0.00024999,2]
[321759428,1712497855575,-500.0,0.00024999,2]
[321759429,1712497855585,-1410.52,0.00024999,2]
[321759430,1712497855595,-500.0,0.00024999,2]
[321759431,1712497855604,-1410.52,0.00024999,2]
[321759432,1712497855614,-1410.52,0.00024999,2]
[321759433,1712497855623,-500.0,0.00024999,2]
[321759434,1712497855633,-1410.52,0.00024999,2]
[321759435,1712497855644,-500.0,0.00024999,2]
[321759436,1712497855653,-1410.66972652,0.00024999,2]
[321759437,1712497855663,-500.0,0.00024999,2]
[321759438,1712497855673,-500.0,0.00024999,2]
[321759439,1712497855682,-500.0,0.00024999,2]
[321759440,1712497855693,-279.38,0.00024999,2]
[321759441,1712497855703,-500.0,0.00024999,2]
[321759442,1712497855713,-500.0,0.00024999,2]
[321759443,1712497855722,-500.0,0.00024999,2]
[321759444,1712497855731,-156.22,0.00024999,2]
[321759445,1712497855741,-709.87,0.00024999,2]
[321759446,1712497855751,-709.87,0.00024999,2]
[321759447,1712497855761,-709.87,0.00024999,2]
[321759448,1712497855770,-709.87,0.00024999,2]
[321759449,1712497855781,-709.87,0.00024999,2]
[321759450,1712497855791,-709.87,0.00024999,2]
[321759451,1712497855800,-709.93334888,0.00024999,2]
[321759452,1712497855811,-500.0,0.00024999,2]
[321759453,1712497855821,-445.15537755,0.00024999,2]
[321759454,1712497855831,-500.0,0.00024999,2]
[321759455,1712497855840,-500.0,0.00024999,2]
[321759456,1712497855850,-402.88856647,0.00024999,2]
[321759457,1712497855861,-500.0,0.00024999,2]
[321759458,1712497855870,-500.0,0.00024999,2]
[321759459,1712497855880,-500.0,0.00024999,2]
[321759460,1712497855892,-500.0,0.00024999,2]
[321759461,1712497855902,-510.74116039,0.00024999,2]
[321759462,1712497855913,-594.28644036,0.00024999,2]
[321759463,1712497855923,-418.63967605,0.00024999,2]
[321759464,1712497855934,-640.9,0.00024999,2]
[321759465,1712497855944,-640.9,0.00024999,2]
[321759466,1712497855954,-640.9,0.00024999,2]
[321759467,1712497855964,-640.9,0.00024999,2]
[321759468,1712497855976,-640.9,0.00024999,2]
[321759469,1712497855987,-640.9,0.00024999,2]
[321759470,1712497855997,-640.9,0.00024999,2]
[321759471,1712497856007,-640.9,0.00024999,2]
[321759472,1712497856017,-640.9,0.00024999,2]
[321759473,1712497856026,-640.9,0.00024999,2]
[321759474,1712497856036,-641.05746858,0.00024999,2]
[321759475,1712497856046,-1062.89,0.00024999,2]
[321759476,1712497856055,-1062.89,0.00024999,2]
[321759477,1712497856065,-1062.89,0.00024999,2]
[321759478,1712497856075,-1062.89,0.00024999,2]
[321759479,1712497856086,-1062.89,0.00024999,2]
[321759480,1712497856097,-1062.89,0.00024999,2]
[321759481,1712497856107,-1062.90312188,0.00024999,2]
[321759482,1712497856118,-702.53,0.00024999,2]
[321759483,1712497856127,-702.53,0.00024999,2]
[321759484,1712497856137,-702.53,0.00024999,2]
[321759485,1712497856147,-702.53,0.00024999,2]
[321759486,1712497856156,-500.0,0.00024999,2]
[321759487,1712497856167,-702.53,0.00024999,2]
[321759488,1712497856177,-500.0,0.00024999,2]
[321759489,1712497856186,-702.53,0.00024999,2]
[321759490,1712497856197,-500.0,0.00024999,2]
[321759491,1712497856206,-702.53,0.00024999,2]
[321759492,1712497856216,-500.0,0.00024999,2]
[321759493,1712497856226,-702.54,0.00024999,2]
[321759494,1712497856236,-500.0,0.00024999,2]
[321759495,1712497856245,-345.03304629,0.00024999,2]
[321759496,1712497856255,-500.0,0.00024999,2]
[321759497,1712497856265,-500.0,0.00024999,2]
[321759498,1712497856275,-500.0,0.00024999,2]
[321759499,1712497856285,-500.0,0.00024999,2]
[321759500,1712497856295,-337.72923458,0.00024999,2]
[321759501,1712497856305,-991.54,0.00024999,2]
[321759502,1712497856315,-991.54,0.00024999,2]
[321759503,1712497856324,-991.54,0.00024999,2]
[321759504,1712497856333,-881.03,0.00024999,2]
[321759505,1712497856343,-991.54,0.00024999,2]
[321759506,1712497856353,-991.54,0.00024999,2]
[321759507,1712497856362,-881.03,0.00024999,2]
[321759508,1712497856372,-991.54,0.00024999,2]
[321759509,1712497856382,-881.03,0.00024999,2]
[321759510,1712497856392,-991.54,0.00024999,2]
[321759511,1712497856403,-991.57682502,0.00024999,2]
[321759512,1712497856413,-881.03,0.00024999,2]
[321759513,1712497856423,-881.03,0.00024999,2]
[321759514,1712497856433,-881.03,0.00024999,2]
[321759515,1712497856445,-881.03,0.00024999,2]
[321759516,1712497856456,-881.13935698,0.00024999,2]
[321759517,1712497856465,-1112.67,0.00024999,2]
[321759518,1712497856475,-1112.67,0.00024999,2]
[321759519,1712497856485,-1112.67,0.00024999,2]
[321759520,1712497856495,-1112.67,0.00024999,2]
[321759521,1712497856505,-1112.67,0.00024999,2]
[321759522,1712497856515,-1112.67,0.00024999,2]
[321759523,1712497856526,-1112.67,0.00024999,2]
[321759524,1712497856535,-1112.87770083,0.00024999,2]
[321759525,1712497856546,-467.39681613,0.00024999,2]
[321759526,1712497856557,-653.64,0.00024999,2]
[321759527,1712497856570,-653.64,0.00024999,2]
[321759528,1712497856581,-653.64,0.00024999,2]
[321759529,1712497856592,-653.64,0.00024999,2]
[321759530,1712497856602,-653.64,0.00024999,2]
[321759531,1712497856612,-653.64,0.00024999,2]
[321759532,1712497856622,-653.64,0.00024999,2]
[321759533,1712497856633,-653.6789104,0.00024999,2]
[321759534,1712497856643,-500.0,0.00024999,2]
[321759535,1712497856653,-500.0,0.00024999,2]
[321759536,1712497856663,-500.0,0.00024999,2]
[321759537,1712497856673,-500.0,0.00024999,2]
[321759538,1712497856684,-500.0,0.00024999,2]
[321759539,1712497856695,-500.0,0.00024999,2]
[321759540,1712497856705,-500.0,0.00024999,2]
[321759541,1712497856715,-500.0,0.00024999,2]
[321759542,1712497856725,-352.77980035,0.00024999,2]
[321759543,1712497856736,-500.0,0.00024999,2]
[321759544,1712497856746,-500.0,0.00024999,2]
[321759545,1712497856757,-500.0,0.00024999,2]
[321759546,1712497856766,-500.0,0.00024999,2]
[321759547,1712497856777,-500.0,0.00024999,2]
[321759548,1712497856787,-175.74614218,0.00024999,2]
[321759549,1712497856797,-531.44,0.00024999,2]
[321759550,1712497856807,-531.44,0.00024999,2]
[321759551,1712497856818,-531.44,0.00024999,2]
[321759552,1712497856827,-531.44,0.00024999,2]
[321759553,1712497856839,-531.44,0.00024999,2]
[321759554,1712497856849,-531.44,0.00024999,2]
[321759555,1712497856860,-531.44,0.00024999,2]
[321759556,1712497856872,-531.44,0.00024999,2]
[321759557,1712497856882,-531.44,0.00024999,2]
[321759558,1712497856893,-531.44,0.00024999,2]
[321759559,1712497856905,-531.60889469,0.00024999,2]
[321759560,1712497856915,-500.0,0.00024999,2]
[321759561,1712497856926,-500.0,0.00024999,2]
[321759562,1712497856936,-500.0,0.00024999,2]
[321759563,1712497856946,-500.0,0.00024999,2]
[321759564,1712497856956,-500.0,0.00024999,2]
[321759565,1712497856965,-500.0,0.00024999,2]
[321759566,1712497856977,-500.0,0.00024999,2]
[321759567,1712497856989,-500.0,0.00024999,2]
[321759568,1712497856999,-581.32630913,0.00024999,2]
[321759569,1712497857009,-2135805.77920096,0.00025,2]
[321759570,1712497857500,-3812902.48007691,0.00025,2]
[321759571,1712497857515,-1899501.56343373,0.00025,2]
[321759572,1712497857525,-999311.20909944,0.00025,2]
[321759573,1712497857534,-2913453.33267793,0.00025,2]
[321759574,1712497857544,-9782.54482207,0.00025,2]
[321759575,1712497857556,-434493.88608392,0.00025,2]
[321759576,1712497857565,-355672.88421237,0.00025,2]
[321759577,1712497857575,-388102.86249873,0.00025,2]
[321759578,1712497857584,-168.9376488,0.00025,7]
[321759579,1712497857594,-1599.00111178,0.00025,2]
[321759580,1712497857604,-500.0,0.00025,2]
[321759581,1712497857614,-500.0,0.00025,2]
[321759582,1712497857623,-500.0,0.00025,2]
[321759583,1712497857633,-500.0,0.00025,2]
[321759584,1712497857642,-500.0,0.00025,2]
[321759585,1712497857651,-500.0,0.00025,2]
[321759586,1712497857661,-500.0,0.00025,2]
[321759587,1712497857671,-762.0,0.00025,2]
[321759588,1712497857680,-500.0,0.00025,2]
[321759589,1712497857689,-500.0,0.00025,2]
[321759590,1712497857699,-500.0,0.00025,2]
[321759591,1712497857709,-500.0,0.00025,2]
[321759592,1712497857718,-500.0,0.00025,2]
[321759593,1712497857728,-500.0,0.00025,2]
[321759594,1712497857737,-500.0,0.00025,2]
[321759595,1712497857748,-500.0,0.00025,2]
[321759596,1712497857758,-500.0,0.00025,2]
[321759597,1712497857767,-500.0,0.00025,2]
[321759598,1712497857777,-500.0,0.00025,2]
[321759599,1712497857786,-500.0,0.00025,2]
[321759600,1712497857796,-500.0,0.00025,2]
[321759601,1712497857806,-500.0,0.00025,2]
[321759602,1712497857815,-500.0,0.00025,2]
[321759603,1712497857826,-500.0,0.00025,2]
[321759604,1712497857836,-500.0,0.00025,2]
[321759605,1712497857845,-500.0,0.00025,2]
[321759606,1712497857855,-500.0,0.00025,2]
[321759607,1712497857864,-500.0,0.00025,2]
[321759608,1712497857873,-753.0,0.00025,2]
[321759609,1712497857883,-500.0,0.00025,2]
[321759610,1712497857896,-6255.03785299,0.00025,2]
[321759611,1712497857908,-155.0,0.00025,2]
[321759612,1712497857918,-158.67381159,0.00025,4]
[321759613,1712497857928,-5000.0,0.00025,2]
[321759614,1712497857938,-26802.25013894,0.00025,7]
[321759615,1712497857949,-265.22596537,0.00025,2]
[321759616,1712497857959,-5994.72579901,0.00025,2]
[321759617,1712497857967,-155.0,0.00025,2]
[321759618,1712497857978,-1000.0,0.00025,2]
[321759619,1712497857988,-150.0,0.00025,2]
[321759620,1712497857997,-10013.48485174,0.00025,2]
[321759621,1712497858007,-2843.27416764,0.00025,2]
[321759622,1712497858016,-394.0,0.00025,2]
[321759623,1712497858025,-394.0,0.00025,2]
[321759624,1712497858035,-394.0,0.00025,2]
[321759625,1712497858044,-788.0,0.00025,2]
[321759626,1712497858055,-788.0,0.00025,2]
[321759627,1712497858065,-155.0,0.00025,2]
[321759628,1712497858074,-2875.86637624,0.00025,2]
[321759629,1712497858084,-2000.0,0.00025,2]
[321759630,1712497858093,-200.0,0.00025,2]
[321759631,1712497858103,-271.62965372,0.00025,2]
[321759632,1712497858113,-200.0,0.00025,2]
[321759633,1712497858122,-500.0,0.00025,2]
[321759634,1712497858132,-1850.0,0.00025,3]
[321759635,1712497858142,-2000.0,0.00025,2]
[321759636,1712497858151,-200.0,0.00025,2]
[321759637,1712497858161,-150.0,0.00025,2]
[321759638,1712497858172,-774.75739,0.00025,2]
[321759639,1712497858183,-774.75739,0.00025,2]
[321759640,1712497858196,-774.75739,0.00025,2]
[321759641,1712497858206,-350.97181,0.00025,2]
[321759642,1712497858217,-350.97182,0.00025,2]
[321759643,1712497858227,-350.97182,0.00025,2]
[321759644,1712497858237,-206.52044857,0.00025023,2]
[321759645,1712497858247,-151.11770668,0.00025088,2]
[321759646,1712497858257,-150.66332821,0.00025091,2]
[321759647,1712497858267,-16137.60201979,0.000251,2]
[321759648,1712497858276,-3162.74498577,0.000251,2]
[321759649,1712497858286,-152.21975544,0.00025117,2]
[321759650,1712497858296,-152.21975544,0.00025232,2]
[321759651,1712497858305,-200.0,0.0002525,2]
[321759652,1712497858315,-2000.0,0.0002525,2]
[321759653,1712497858325,-200.0,0.0002525,2]
[321759654,1712497858334,-265.99140017,0.00025261,2]
[321759655,1712497858343,-155.0,0.000253,2]
[321759656,1712497858352,-153.40889555,0.00025301,2]
[321759657,1712497858363,-1096.6422546,0.00025302,2]
[321759658,1712497858372,-166.53075768,0.00025314,2]
[321759659,1712497858382,-150.66332821,0.00025325,2]
[321759660,1712497858391,-177.05277632,0.00025342,2]
[321759661,1712497858400,-270.13023947,0.00025422,2]
[321759662,1712497858409,-151.11770668,0.00025443,2]
[321759663,1712497858419,-151.36062497,0.00025458,2]
[321759664,1712497858429,-270.13023947,0.00025464,2]
[321759665,1712497858439,-172.0712165,0.00025484,2]
[321759666,1712497858450,-206.52044857,0.00025486,2]
[321759667,1712497858459,-1030.44,0.000255,2]
[321759668,1712497858468,-1322.47,0.000255,2]
[321759669,1712497858478,-200.0,0.00025503,2]
[321759670,1712497858487,-2000.0,0.00025503,2]
[321759671,1712497858496,-200.0,0.00025503,2]
[321759672,1712497858506,-1646.06687719,0.00025582,2]
[321759673,1712497858515,-151.36062497,0.00025584,2]
[321759674,1712497858525,-158.87544862,0.00025584,2]
[321759675,1712497858534,-167.66,0.00025594,2]
[321759676,1712497858543,-265.99140017,0.00025618,2]
[321759677,1712497858553,-153.82592489,0.00025623,2]
[321759678,1712497858562,-528.0,0.00025657,2]
[321759679,1712497858572,-158.34567612,0.00025667,2]
[321759680,1712497858582,-153.40889555,0.00025681,2]
[321759681,1712497858592,-150.61093648,0.00025683,2]
[321759682,1712497858602,-705.0,0.00025685,2]
[321759683,1712497858612,-158.87544862,0.00025722,2]
[321759684,1712497858623,-151.33317952,0.00025837,2]
[321759685,1712497858632,-150.66332821,0.00025866,2]
[321759686,1712497858641,-150.61093648,0.00025888,2]
[321759687,1712497858651,-214.0,0.00025955,2]
[321759688,1712497858660,-150.0,0.00025955,2]
[321759689,1712497858669,-153.40889555,0.00025964,2]
[321759690,1712497858679,-4226.93806841,0.00026,2]
[321759691,1712497858688,-150.0,0.00026,2]
[321759692,1712497858699,-500000.0,0.00026,2]
[321759693,1712497858709,-397.40967086,0.00026,10]
[321759694,1712497858718,-150.0,0.00026,2]
[321759695,1712497858728,-1000.0,0.00026,2]
[321759696,1712497858737,-20000.0,0.00026,2]
[321759697,1712497858746,-8962.7178117,0.00026,2]
[321759698,1712497858882,-30.87439586,0.00026,2]
[321759699,1712497858905,-265.9015,0.00024931,2]
[321759700,1712497858918,-234.0985,0.00024931,2]
[321759701,1712497858928,-1006.40779244,0.00026,2]
[321759702,1712497858938,-153.40889555,0.00026009,2]
[321759703,1712497858950,-152.21975544,0.00026028,2]
[321759704,1712497858960,-151.33317952,0.00026045,2]
[321759705,1712497858970,-152.21975544,0.00026138,2]
[321759706,1712497858981,-150.66332821,0.00026189,2]
[321759707,1712497858990,-151.11770668,0.00026244,2]
[321759708,1712497858999,-6986.80387765,0.000263,2]
[321759709,1712497859011,-2898.8438456,0.000263,2]
[321759710,1712497859023,-997.42942407,0.000263,2]
[321759711,1712497859237,-290.76048357,0.000263,2]
[321759712,1712497859261,-7596.16029566,0.000263,2]
[321759713,1712497859424,-888.98,0.00022399,2]
[321759714,1712497859434,-490.78483917,0.00024931,2]
[321759715,1712497859445,-500.0,0.00024931,2]
[321759716,1712497859454,-500.0,0.00024931,2]
[321759717,1712497859463,-138.17848167,0.00024931,2]
[321759718,1712497859475,-361.82151833,0.00024931,2]
[321759719,1712497859484,-500.0,0.00024931,2]
[321759720,1712497859494,-500.0,0.00024931,2]
[321759721,1712497859503,-1027.55236185,0.000263,2]
[321759722,1712497859515,-254.7065,0.000263,2]
[321759723,1712497859805,-500.0,0.00024931,2]
[321759724,1712497859815,-500.0,0.00024931,2]
[321759725,1712497859825,-500.0,0.00024931,2]
[321759726,1712497859835,-500.0,0.00024931,2]
[321759727,1712497859845,-182.77190816,0.00024931,2]
[321759728,1712497859857,-317.22809184,0.00024931,2]
[321759729,1712497859866,-14615.04435369,0.000263,2]
[321759730,1712497859879,-2750.01495071,0.000263,2]
[321759731,1712497860130,-682.36452136,0.00022,2]
[321759732,1712497860139,-186.78472345,0.00022398,2]
[321759733,1712497860148,-313.50702915,0.0002493,2]
[321759734,1712497860158,-500.0,0.00024931,2]
[321759735,1712497860167,-195.01227344,0.00024931,2]
[321759736,1712497860176,-500.0,0.00024931,2]
[321759737,1712497860186,-500.0,0.00024931,2]
[321759738,1712497860195,-500.0,0.00024931,2]
[321759739,1712497860205,-500.0,0.00024931,2]
[321759740,1712497860214,-500.0,0.00024931,2]
[321759741,1712497860224,-521.54087122,0.00024931,2]
[321759742,1712497860233,-500.0,0.00024931,2]
[321759743,1712497860243,-500.0,0.00024931,2]
[321759744,1712497860253,-22884.54017911,0.000263,2]
[321759745,1712497860263,-1646.06687719,0.00026301,2]
[321759746,1712497860273,-453.83,0.0002634,2]
[321759747,1712497860284,-151.36062497,0.00026365,2]
[321759748,1712497860294,-158.34567612,0.00026418,2]
[321759749,1712497860304,-166.78217291,0.0002644,2]
[321759750,1712497860313,-155.0,0.0002645,2]
[321759751,1712497860323,-151.36062497,0.00026453,2]